Cogmind - Beta 12 *** ADVENTURER MODE // 2023.06.06 @ 11:29:12 Player: Puck Result: Self-destructed Performance ------------- Evolutions (5) 2500 Regions Visited (17) 3400 Robots Destroyed (91) 455 Value Destroyed (3826) 3826 Prototype IDs (16) 320 Alien Tech Used (3) 600 Bonus (2524) 2524 TOTAL SCORE: 13625 Bonus ------- High Alert Combat Kills 138 Follower Combat Kills 1398 Network Hubs Disabled 200 Met Zhirov 300 Met R17 at Cetus 500 Friendly Fire -12 Cogmind --------- Core Integrity 634/1000 Matter 185/300 Energy 100/100 System Corruption 3% Temperature Cool (0) Movement Core (250) Ox4 Location -4/Proximity Caves Parts ------- > --- POWER (2) -------- (None) > --- PROPULSION (6) --- (None) > --- UTILITY (7) ------ Medium Storage Unit Enhanced Optical Array Advanced Sensor Array Improved Signal Interpreter Improved Targeting Computer > --- WEAPON (2) ------- Heavy Flail > --- INVENTORY (10) --- Improved Heat Sink Advanced Heat Sink Compact Matter Pod (150) Hardened Heavy Armor Plating Centrium Medium Armor Plating Centrium Medium Armor Plating Remote Shield Peak State ------------ > --- POWER ------------ Neutrino Core Quantum Reactor > --- PROPULSION ------- Carbon-fiber Leg Carbon-fiber Leg Carbon-fiber Leg Flexi-carbon Leg Flexi-carbon Leg Armored Leg > --- UTILITY ---------- Advanced Heat Sink Medium Storage Unit Enhanced Optical Array Improved Signal Interpreter Improved Targeting Computer Centrium Medium Armor Plating Centrium Medium Armor Plating > --- WEAPON ----------- Advanced KE Penetrator Bore Cannon > --- INVENTORY -------- Carbon-fiber Leg Carbon-fiber Leg Compact Matter Pod Structural Scanner Advanced Sensor Array Hardened Heavy Armor Plating Centrium Medium Armor Plating Mass Driver Heavy Flail [Rating: 90] Favorites ----------- Power Quantum Reactor Engine Ion Engine Power Core Fission Core Reactor Quantum Reactor Propulsion Carbon-fiber Leg Leg Carbon-fiber Leg Wheel Compact Wheel Hover Unit Hover Unit Flight Unit Flight Unit Utility Improved Signal Interpreter Device Structural Scanner Storage Medium Storage Unit Processor Improved Signal Interpreter Hackware Makeshift Hacking Suite Protection Centrium Medium Armor Plating Weapon Bore Cannon Energy Gun Small Laser Energy Cannon Phase Cannon Ballistic Gun Advanced KE Penetrator Ballistic Cannon Bore Cannon Launcher Grenade Launcher Impact Weapon Heavy Flail Build | -11 -10 -9 -9 -9 -8 -8 -7 -6 -6 -6 -6 -6 -5 -5 -5 -5 -4 ------- Run | Jun Mat Mat Min Exi Min Mat Fac Fac Ext Cet Arc Hub Fac Upp Upp Zhi Pro Slots Evolved 10 | . . 2 . . . 2 2 2 . . . . 2 . . . . Power 1 | . . . . . . . . 1 . . . . . . . . . Propulsion 4 | . . 1 . . . 2 1 . . . . . . . . . . Utility 5 | . . 1 . . . . 1 1 . . . . 2 . . . . Weapon . | . . . . . . . . . . . . . . . . . . Parts Attached 124 | 2 8 2 4 . . 12 11 4 33 8 3 7 7 10 4 4 5 Power 10 | . . . . . . . 2 3 3 1 1 . . . . . . Engine 3 | . . . . . . . 1 . 2 . . . . . . . . Core 6 | . . . . . . . 1 3 1 . 1 . . . . . . Reactor 1 | . . . . . . . . . . 1 . . . . . . . Propulsion 35 | 2 4 1 2 . . 5 1 . 14 . . 1 3 . 1 1 . Treads . | . . . . . . . . . . . . . . . . . . Leg 20 | . . . . . . . . . 14 . . 1 3 . 1 1 . Wheel 2 | 2 . . . . . . . . . . . . . . . . . Hover 2 | . 2 . . . . . . . . . . . . . . . . Flight 11 | . 2 1 2 . . 5 1 . . . . . . . . . . Utility 39 | . 3 1 . . . 4 4 1 5 4 1 5 3 4 2 1 1 Device 21 | . 2 . . . . 2 3 1 1 2 1 4 2 3 . . . Storage 2 | . . 1 . . . . . . 1 . . . . . . . . Processor 5 | . 1 . . . . 1 1 . 1 . . . 1 . . . . Hackware 1 | . . . . . . . . . . . . . . . 1 . . Protection 10 | . . . . . . 1 . . 2 2 . 1 . 1 1 1 1 Artifact . | . . . . . . . . . . . . . . . . . . Weapon 40 | . 1 . 2 . . 3 4 . 11 3 1 1 1 6 1 2 4 Energy Gun 1 | . . . . . . . . . . 1 . . . . . . . Energy Cannon 1 | . . . . . . . . . 1 . . . . . . . . Ballistic Gun 14 | . 1 . 1 . . 2 3 . 1 1 . . 1 2 . 1 1 Ballistic Cannon 11 | . . . . . . . . . 4 1 1 1 . 2 1 . 1 Launcher 3 | . . . 1 . . . . . 2 . . . . . . . . Special Weapon . | . . . . . . . . . . . . . . . . . . Impact Weapon 10 | . . . . . . 1 1 . 3 . . . . 2 . 1 2 Slashing Weapon . | . . . . . . . . . . . . . . . . . . Piercing Weapon . | . . . . . . . . . . . . . . . . . . Special Melee Weapon . | . . . . . . . . . . . . . . . . . . Unidentified Prototypes 7 | . . . . . . . 1 . . 3 . . . . 1 1 1 Parts Lost 22 | . . . . . . 1 . . 3 . . 3 1 1 2 . 11 Power 2 | . . . . . . . . . . . . . . . 1 . 1 Propulsion 12 | . . . . . . 1 . . 3 . . . 1 . 1 . 6 Utility 3 | . . . . . . . . . . . . 1 . . . . 2 Weapon 5 | . . . . . . . . . . . . 2 . 1 . . 2 Highest Loss Streak 9 | . . . . . . 1 . . 3 . . 1 1 1 1 . 9 To Critical Strikes . | . . . . . . . . . . . . . . . . . . Average Slot Usage (%) 95 | . 84 100 100 100 100 100 92 93 96 100 100 99 98 100 93 84 86 Engine 3 | . 14 11 11 11 11 9 6 3 1 11 2 . . . . . . Core 4 | . . . . . . . 1 9 11 . 3 6 5 5 2 . . Reactor 2 | . . . . . . . . . . 1 6 6 5 5 5 5 1 Leg 25 | . . . . . . . . . 29 40 40 40 33 35 34 35 34 Flight 9 | . 7 33 33 33 33 45 38 40 9 . . . . . . . . Device 10 | . 5 11 11 11 11 8 15 17 12 5 6 7 11 9 11 11 11 Storage 6 | . 5 11 11 11 11 9 7 6 6 6 6 6 5 5 5 5 5 Processor 11 | . 3 11 11 11 11 9 7 6 6 13 13 13 17 17 17 17 17 Protection 3 | . . . . . . . . . 6 6 6 4 5 6 1 5 3 Energy Gun 1 | . 14 11 11 11 11 . . . . . . . . . . . . Ballistic Gun 4 | . 14 11 11 11 11 16 7 2 . 1 . . 5 4 5 . 1 Ballistic Cannon 4 | . . . . . . . . . 9 6 13 12 5 4 . . 4 Impact Weapon 1 | . . . . . . 1 6 6 1 . . . . 1 4 1 4 Naked Turns . | . . . . . . . . . . . . . . . . . . Heaviest Build 74 | 13 13 13 13 13 13 19 24 30 64 69 70 70 68 74 62 53 53 Greatest Support 110 | 32 32 18 18 18 18 26 30 30 110 105 105 106 106 101 101 96 96 Greatest Overweight (x) 1 | . 1 . . . . . . . 1 . . . . . . . . Average Overweight (x) . | . . . . . . . . . . . . . . . . . . Largest Inventory Capacity 10 | 8 8 8 8 8 8 8 8 8 10 10 10 10 10 10 10 10 10 Average Capacity 9 | 8 6 7 8 8 8 8 8 8 9 10 10 10 10 10 10 10 10 Most Carried 10 | 5 5 4 8 8 8 8 8 8 10 10 10 10 10 10 10 10 10 Average Carried 8 | 3 3 3 6 8 8 7 7 7 9 10 10 9 7 9 9 9 8 Final Capacity 10 | 8 5 8 8 8 8 8 8 8 10 10 10 10 10 10 10 10 10 Final Carried 10 | 2 5 3 8 8 8 8 8 8 10 10 10 9 10 8 10 10 8 Class Distribution -------------------- 35% | Scavenger-Mutant 22% | Scavenger-Assassin 14% | Mutant 13% | Scavenger-Skirmisher 9% | Scavenger-Sprinter 3% | Scavenger-Scout Dominant Class ---------------- Mutant | -10/Materials Mutant | -9/Materials Mutant | -9/Mines Mutant | -9/Exiles Mutant | -8/Mines Scavenger-Sprinter | -8/Materials Scavenger-Scout | -7/Factory Scavenger-Sprinter | -6/Factory Scavenger-Mutant | -6/Extension Scavenger-Mutant | -6/Cetus Scavenger-Mutant | -6/Archives Scavenger-Mutant | -6/Hub_04(d) Scavenger-Skirmisher | -5/Factory Scavenger-Skirmisher | -5/Upper Caves Scavenger-Assassin | -5/Upper Caves Scavenger-Mutant | -5/Zhirov Scavenger-Assassin | -4/Proximity Caves Resources | -11 -10 -9 -9 -9 -8 -8 -7 -6 -6 -6 -6 -6 -5 -5 -5 -5 -4 ----------- Run | Jun Mat Mat Min Exi Min Mat Fac Fac Ext Cet Arc Hub Fac Upp Upp Zhi Pro Matter Collected 3540 | 192 342 . 102 . . 87 142 . 1092 264 144 143 292 498 242 . . Remotely . | . . . . . . . . . . . . . . . . . . Salvage Created 3814 | . 393 . 50 . . 104 142 . 1117 201 297 446 288 431 282 . 63 Parts 182 | . 27 . 14 . . 11 3 . 39 10 17 21 16 14 7 . 3 Haulers Intercepted 5 | . 2 . . . . 1 . . . . . 2 . . . . . Recyclers Shooed 1 | . 1 . . . . . . . . . . . . . . . . Parts Field Recycled . | . . . . . . . . . . . . . . . . . . Retrieved Matter . | . . . . . . . . . . . . . . . . . . Parts Self-Destructed 18 | . . . . . . . . . . . . . . 13 3 . 2 Prevented 7 | . . . . . . . . . . . . . . 1 5 . 1 Kills | -11 -10 -9 -9 -9 -8 -8 -7 -6 -6 -6 -6 -6 -5 -5 -5 -5 -4 ------- Run | Jun Mat Mat Min Exi Min Mat Fac Fac Ext Cet Arc Hub Fac Upp Upp Zhi Pro Combat Hostiles Destroyed 68 | . 7 . 7 . . . 3 . 18 3 4 3 7 8 6 . 2 Melee 5 | . . . . . . . . . 3 . . . . 1 1 . . Guns 24 | . 7 . 4 . . . 3 . . . . . 5 2 2 . 1 Cannons 33 | . . . . . . . . . 15 3 4 3 2 5 1 . . AOE 3 | . . . 3 . . . . . . . . . . . . . . Classes Destroyed 15 | . 4 . . . . 1 . . 5 . . 4 . . . . 1 Worker 3 | . . . . . . . . . . . . 3 . . . . . Builder 2 | . . . . . . . . . . . . 2 . . . . . Tunneler 1 | . . . . . . . . . . . . 1 . . . . . Hauler 5 | . 2 . . . . 1 . . . . . 2 . . . . . Recycler 2 | . . . . . . . . . 2 . . . . . . . . Operator 1 | . . . . . . 1 . . . . . . . . . . . Drone 1 | . . . . . . . . . . . . . . . . . 1 Watcher 9 | . 3 . . . . 1 1 . 2 . . 1 1 . . . . Swarmer 18 | . 3 . 7 . . . 2 . 1 . . . 4 . 1 . . Grunt 26 | . 4 . . . . . 1 . 10 . . . 3 7 1 . . Duelist 1 | . . . . . . . . . 1 . . . . . . . . Sentry 11 | . . . . . . . . . 4 . 4 2 . . 1 . . Hunter 4 | . . . . . . . . . 1 . . . . . 2 . 1 Programmer 3 | . . . . . . . . . . . . 1 . 1 1 . . Behemoth 1 | . . . . . . . . . 1 . . . . . . . . Cetus Guard 3 | . . . . . . . . . . 3 . . . . . . . Best Kill Streak 10 | . 3 . 4 . . 3 3 . 4 3 2 10 4 3 2 . 1 Combat Bots Only 4 | . 3 . 4 . . . 3 . 3 3 2 1 4 3 2 . 1 Max Kills in Single Turn 8 | . 1 . 3 . . 1 1 . 1 2 1 8 1 1 1 . 1 Gunslinging . | . . . . . . . . . . . . . . . . . . Exploded 3 | . . . 3 . . . . . . . . . . . . . . Melee 1 | . . . . . . . . . 1 . . . . 1 1 . . Uniques/NPCs Destroyed . | . . . . . . . . . . . . . . . . . . Combat | -11 -10 -9 -9 -9 -8 -8 -7 -6 -6 -6 -6 -6 -5 -5 -5 -5 -4 -------- Run | Jun Mat Mat Min Exi Min Mat Fac Fac Ext Cet Arc Hub Fac Upp Upp Zhi Pro Damage Taken 4392 | . 60 . 56 . . 79 84 . 902 147 94 464 249 475 488 . 1294 Core 618 | . 24 . 11 . . 24 25 . 127 45 . 52 . 47 60 . 203 Absorbed by Shields 75 | . . . . . . . . . 29 46 . . . . . . . Core Remaining (%) 91 | 100 90 . . . 97 95 96 . . . . 73 . . . . . Volleys Fired 194 | . 28 4 8 . . 8 5 . 49 8 9 13 13 30 14 . 5 Largest 2 | . 2 2 2 . . 2 2 . 2 2 2 2 2 2 2 . 2 Hottest 142 | . 60 60 70 . . 56 56 . 114 142 114 114 92 114 88 . 88 Shots Fired 359 | . 52 7 15 . . 16 10 . 94 16 18 26 25 44 27 . 9 Gun 149 | . 52 7 14 . . 16 10 . 1 . . . 12 19 13 . 5 Cannon 206 | . . . . . . . . . 90 16 18 26 13 25 14 . 4 Launcher 4 | . . . 1 . . . . . 3 . . . . . . . . Special . | . . . . . . . . . . . . . . . . . . Kinetic 316 | . 28 4 6 . . 16 10 . 91 12 18 26 25 44 27 . 9 Thermal 39 | . 24 3 8 . . . . . . 4 . . . . . . . Explosive 4 | . . . 1 . . . . . 3 . . . . . . . . Electromagnetic . | . . . . . . . . . . . . . . . . . . Robot Hit Streak 24 | . 21 1 6 . . 9 11 . 12 14 3 6 12 8 15 . 24 Robot Miss Streak 4 | . 3 2 2 . . 1 . . 3 1 3 2 2 4 1 . . Penetration Max 2 | . . . . . . . . . 2 1 . . . 1 . . . Secondary Targets 2 | . . . 2 . . . . . . . . . . . . . . Max Gunslinging Chain 1 | . . . 1 . . . . . . . . . . . . . . Shots Hit Robots 263 | . 41 3 10 . . 11 9 . 66 14 8 15 15 30 26 2 13 Core Hits 135 | . 18 1 7 . . 5 3 . 40 6 7 17 9 13 6 . 3 Critical Kills 37 | . . . . . . . 1 . 15 3 4 1 6 6 1 . . Critical Parts Destroyed 36 | . . . . . . . 1 . 21 2 2 1 2 4 2 . 1 Critical Strikes 79 | . . . . . . . 2 . 39 6 6 3 8 10 4 . 1 Destroy 72 | . . . . . . . 1 . 36 6 6 3 8 10 2 . . Smash 7 | . . . . . . . 1 . 3 . . . . . 2 . 1 Melee Attacks 33 | . . . . . . 1 2 1 11 . . . . 4 5 2 7 Impact 33 | . . . . . . 1 2 1 11 . . . . 4 5 2 7 Slashing . | . . . . . . . . . . . . . . . . . . Piercing . | . . . . . . . . . . . . . . . . . . Sneak Attacks 1 | . . . . . . . . . 1 . . . . . . . . Combat Hostiles 1 | . . . . . . . . . 1 . . . . . . . . Follow-up Attacks . | . . . . . . . . . . . . . . . . . . Damage Inflicted 7818 | . 502 40 259 . . 222 245 . 2073 413 220 1172 389 845 784 260 394 Guns 2081 | . 502 40 116 . . 222 160 . 16 . . . 237 372 311 . 105 Cannons 3353 | . . . . . . . . . 1476 413 220 296 152 371 333 . 92 Explosions 1094 | . . . 143 . . . . . 75 . . 876 . . . . . Melee 1290 | . . . . . . . 85 . 506 . . . . 102 140 260 197 Ramming . | . . . . . . . . . . . . . . . . . . Kinetic 5058 | . 278 40 57 . . 222 160 . 1492 320 220 296 389 743 644 . 197 Thermal 376 | . 224 . 59 . . . . . . 93 . . . . . . . Explosive 218 | . . . 143 . . . . . 75 . . . . . . . . Electromagnetic 876 | . . . . . . . . . . . . 876 . . . . . Impact 1290 | . . . . . . . 85 . 506 . . . . 102 140 260 197 Slashing . | . . . . . . . . . . . . . . . . . . Piercing . | . . . . . . . . . . . . . . . . . . Highest Corruption 3 | . . . . . . . . . . . . 1 1 1 3 3 3 Average Corruption 1 | . . . . . . . . . . . . 1 1 1 1 3 3 Corruption Purged . | . . . . . . . . . . . . . . . . . . Corruption Blocked . | . . . . . . . . . . . . . . . . . . Effects 27 | . . . . . . . . . . . . . 3 2 12 5 5 Message Errors 8 | . . . . . . . . . . . . . 1 1 4 . 2 Matter Fused 8 | . . . . . . . . . . . . . 2 . 4 1 1 Heat Flow Errors 4 | . . . . . . . . . . . . . . 1 1 2 . Energy Discharges 4 | . . . . . . . . . . . . . . . 1 2 1 Data Loss (minor) 1 | . . . . . . . . . . . . . . . 1 . . Data Loss (major) 1 | . . . . . . . . . . . . . . . 1 . . Alerts 1 | . . . . . . . . . . . . . . . . . 1 Overload Shots . | . . . . . . . . . . . . . . . . . . Overflow Damage 590 | . . . . . . . 85 . 190 . . 38 . 26 139 61 51 Projectiles 9 | . . . . . . . . . . . . . . . 9 . . Explosions 38 | . . . . . . . . . . . . 38 . . . . . Melee 543 | . . . . . . . 85 . 190 . . . . 26 130 61 51 Knockbacks 22 | . . . . . . . 1 . 12 . . . 1 3 2 . 3 Impact 5 | . . . . . . . 1 . . . . . . 1 2 . 1 Kinetic 16 | . . . . . . . . . 11 . . . 1 2 . . 2 Secondary 1 | . . . . . . . . . 1 . . . . . . . . Self-Inflicted Damage 80 | . . . . . . . . . . . . 80 . . . . . Shots 1 | . . . . . . . . . . . . 1 . . . . . Rammed . | . . . . . . . . . . . . . . . . . . Targets Rammed . | . . . . . . . . . . . . . . . . . . Kicked . | . . . . . . . . . . . . . . . . . . Crushed . | . . . . . . . . . . . . . . . . . . Highest Temperature 310 | . 32 6 9 . . 8 18 220 111 162 211 219 213 310 195 241 . Average Temperature 67 | . 15 6 7 . . 4 5 108 30 74 117 94 70 95 89 104 . Received Heat Transfer 1350 | . 30 . . . . 45 36 . 387 30 18 90 72 288 162 . 192 Effects 3 | . . . . . . . . . . . . . . 3 . . . Interference 3 | . . . . . . . . . . . . . . 3 . . . Siege Activations . | . . . . . . . . . . . . . . . . . . Robots Corrupted 1 | . . . . . . . . . . . . 1 . . . . . Combat Hostiles . | . . . . . . . . . . . . . . . . . . Parts Fried 10 | . . . . . . . 1 . . . . 4 . . 4 . 1 Impact Corruptions 16 | . . . . . . . 4 . 4 . . . . 1 4 1 2 Robots Melted . | . . . . . . . . . . . . . . . . . . Combat Hostiles . | . . . . . . . . . . . . . . . . . . Parts Melted . | . . . . . . . . . . . . . . . . . . Heat Transferred 736 | . 500 . 125 . . . . . . 111 . . . . . . . Parts Sabotaged . | . . . . . . . . . . . . . . . . . . Parts Stolen . | . . . . . . . . . . . . . . . . . . Parts Stripped . | . . . . . . . . . . . . . . . . . . Power Chain Reactions 1 | . . . . . . . . . . . . 1 . . . . . Missiles Intercepted . | . . . . . . . . . . . . . . . . . . Alert | -11 -10 -9 -9 -9 -8 -8 -7 -6 -6 -6 -6 -6 -5 -5 -5 -5 -4 ------- Run | Jun Mat Mat Min Exi Min Mat Fac Fac Ext Cet Arc Hub Fac Upp Upp Zhi Pro Peak Influence 692 | . 280 130 209 . . 81 154 104 692 442 293 636 493 . . . . Initial 336 | . . 100 42 . . . 31 65 43 336 148 85 268 . . . . Average 227 | . 139 114 155 . . 50 57 84 305 380 266 165 359 . . . . Maximum Alert Level 2 | . 1 . 1 . . . . . 2 2 1 2 2 . . . . Low Security (%) 49 | 100 72 100 77 . 100 100 100 100 26 . 12 90 . . . . . Level 1 39 | . 28 . 22 . . . . . 55 70 88 1 72 . . . . Level 2 11 | . . . . . . . . . 18 29 . 7 27 . . . . Level 3 . | . . . . . . . . . . . . . . . . . . Level 4 . | . . . . . . . . . . . . . . . . . . Level 5 . | . . . . . . . . . . . . . . . . . . High Security . | . . . . . . . . . . . . . . . . . . Max Security . | . . . . . . . . . . . . . . . . . . Squads Dispatched 10 | . 1 2 . . . 2 . . 3 . . 1 1 . . . . Investigation 5 | . 1 1 . . . . . . 2 . . . 1 . . . . Extermination . | . . . . . . . . . . . . . . . . . . Reinforcement 3 | . . 1 . . . 2 . . . . . . . . . . . Assault 2 | . . . . . . . . . 1 . . 1 . . . . . Garrison . | . . . . . . . . . . . . . . . . . . Intercept . | . . . . . . . . . . . . . . . . . . Searches Triggered . | . . . . . . . . . . . . . . . . . . Construction Impeded . | . . . . . . . . . . . . . . . . . . Haulers Reinforced . | . . . . . . . . . . . . . . . . . . Active Scanning Responses . | . . . . . . . . . . . . . . . . . . Cargo Convoy Interrupts . | . . . . . . . . . . . . . . . . . . Stealth | -11 -10 -9 -9 -9 -8 -8 -7 -6 -6 -6 -6 -6 -5 -5 -5 -5 -4 --------- Run | Jun Mat Mat Min Exi Min Mat Fac Fac Ext Cet Arc Hub Fac Upp Upp Zhi Pro Distress Signals 8 | . . 1 . . . 2 . . 1 2 . 2 . . . . . Communications Jammed . | . . . . . . . . . . . . . . . . . . Distress Signals . | . . . . . . . . . . . . . . . . . . Times Spotted 148 | . 11 4 7 . . 8 4 1 50 12 4 11 11 7 6 . 12 Peak Tracking Total 7 | . 3 4 4 . . 7 3 1 7 5 1 6 5 3 3 . 6 Tactical Retreats 10 | . . . . . . 2 . . 4 . . 1 2 . . . 1 Traps | -11 -10 -9 -9 -9 -8 -8 -7 -6 -6 -6 -6 -6 -5 -5 -5 -5 -4 ------- Run | Jun Mat Mat Min Exi Min Mat Fac Fac Ext Cet Arc Hub Fac Upp Upp Zhi Pro Traps Triggered 4 | . . . . . . . 1 . 2 . . . 1 . . . . Indirectly . | . . . . . . . . . . . . . . . . . . Trap Hack Attempts . | . . . . . . . . . . . . . . . . . . Triggered . | . . . . . . . . . . . . . . . . . . Disarmed . | . . . . . . . . . . . . . . . . . . Reprogrammed . | . . . . . . . . . . . . . . . . . . Reused . | . . . . . . . . . . . . . . . . . . Traps Extracted . | . . . . . . . . . . . . . . . . . . Installed . | . . . . . . . . . . . . . . . . . . Triggered 3 | . . . . . . . . . . . . . . 2 1 . . Machines | -11 -10 -9 -9 -9 -8 -8 -7 -6 -6 -6 -6 -6 -5 -5 -5 -5 -4 ---------- Run | Jun Mat Mat Min Exi Min Mat Fac Fac Ext Cet Arc Hub Fac Upp Upp Zhi Pro Machines Disabled 24 | . 1 . . . . 1 . . 4 1 2 12 2 . 1 . . Max in Single Turn 11 | . 1 . . . . 1 . . 1 1 1 11 1 . 1 . . Garrison Access 1 | . . . . . . . . . . . . 1 . . . . . Network Hub 1 | . . . . . . . . . . . . 1 . . . . . Machines Repaired . | . . . . . . . . . . . . . . . . . . Machines Sabotaged . | . . . . . . . . . . . . . . . . . . Overloaded Fab Kills . | . . . . . . . . . . . . . . . . . . Hacking | -11 -10 -9 -9 -9 -8 -8 -7 -6 -6 -6 -6 -6 -5 -5 -5 -5 -4 --------- Run | Jun Mat Mat Min Exi Min Mat Fac Fac Ext Cet Arc Hub Fac Upp Upp Zhi Pro Machines Accessed 35 | . 5 1 . 1 . 2 4 3 9 . . 1 . . 2 7 . Terminals 22 | . 5 1 . . . 2 2 2 9 . . 1 . . . . . Fabricators . | . . . . . . . . . . . . . . . . . . Repair Stations . | . . . . . . . . . . . . . . . . . . Recycling Units 2 | . . . . . . . 2 . . . . . . . . . . Scanalyzers . | . . . . . . . . . . . . . . . . . . Garrison Access 1 | . . . . . . . . 1 . . . . . . . . . Total Hacks 93 | . 23 2 . 1 . 5 7 5 18 . . 1 . . 2 29 . Successful 61 | . 10 . . 1 . 4 3 2 10 . . . . . 2 29 . Failed 32 | . 13 2 . . . 1 4 3 8 . . 1 . . . . . Catastrophic 7 | . 3 1 . . . 1 . 1 . . . 1 . . . . . Database Lockouts . | . . . . . . . . . . . . . . . . . . Manual 24 | . 14 . . . . 3 . 2 3 2 . . . . . . . Terminals 58 | . 23 2 . . . 5 5 4 18 . . 1 . . . . . Fabricators . | . . . . . . . . . . . . . . . . . . Repair Stations . | . . . . . . . . . . . . . . . . . . Recycling Units 2 | . . . . . . . 2 . . . . . . . . . . Scanalyzers . | . . . . . . . . . . . . . . . . . . Garrison Access 1 | . . . . . . . . 1 . . . . . . . . . Terminal Hacks 58 | . 10 . . 1 . 4 1 1 10 . . . . . 2 29 . Record 19 | . . . . 1 . . . . . . . . . . 1 17 . Part Schematic 6 | . . . . . . 2 . . . . . . . . . 4 . Robot Analysis 9 | . 5 . . . . . . . . . . . . . . 4 . Prototype ID Bank 4 | . . . . . . . . . . . . . . . . 4 . Open Door 8 | . . . . . . . . . 7 . . . . . 1 . . Branch Access Points 3 | . 1 . . . . . 1 1 . . . . . . . . . Terminal Index 1 | . 1 . . . . . . . . . . . . . . . . Alert Level 1 | . . . . . . . . . 1 . . . . . . . . Unreport Threat 2 | . . . . . . 1 . . 1 . . . . . . . . Hauler Manifests 1 | . 1 . . . . . . . . . . . . . . . . Zone Layout 4 | . 2 . . . . 1 . . 1 . . . . . . . . Fabricator Hacks . | . . . . . . . . . . . . . . . . . . Repair Station Hacks . | . . . . . . . . . . . . . . . . . . Recycling Unit Hacks 2 | . . . . . . . 2 . . . . . . . . . . Report Inventory 2 | . . . . . . . 2 . . . . . . . . . . Scanalyzer . | . . . . . . . . . . . . . . . . . . Garrison Access Hacks . | . . . . . . . . . . . . . . . . . . Unauthorized Hacks 1 | . . . . . . . . 1 . . . . . . . . . Terminals 1 | . . . . . . . . 1 . . . . . . . . . Assimilate 1 | . . . . . . . . 1 . . . . . . . . . Fabricators . | . . . . . . . . . . . . . . . . . . Repair Stations . | . . . . . . . . . . . . . . . . . . Recycling Units . | . . . . . . . . . . . . . . . . . . Scanalyzers . | . . . . . . . . . . . . . . . . . . Garrison Access . | . . . . . . . . . . . . . . . . . . Data Cores Recovered 1 | . . . . . . 1 . . . . . . . . . . . Used 1 | . . . . . . 1 . . . . . . . . . . . Hacking Detections 19 | . 4 1 . . . 2 2 3 5 1 . 1 . . . . . Full Trace Events 4 | . 1 1 . . . . . . 2 . . . . . . . . Feedback Events . | . . . . . . . . . . . . . . . . . . Feedback Blocked . | . . . . . . . . . . . . . . . . . . Robot Schematics Acquired . | . . . . . . . . . . . . . . . . . . Robots Built . | . . . . . . . . . . . . . . . . . . Authchips . | . . . . . . . . . . . . . . . . . . Time . | . . . . . . . . . . . . . . . . . . Total Robot Build Rating . | . . . . . . . . . . . . . . . . . . Part Schematics Acquired 6 | . . . . . . 2 . . . . . . . . . 4 . Parts Built . | . . . . . . . . . . . . . . . . . . Authchips . | . . . . . . . . . . . . . . . . . . Time . | . . . . . . . . . . . . . . . . . . Total Part Build Rating . | . . . . . . . . . . . . . . . . . . Parts Repaired . | . . . . . . . . . . . . . . . . . . Time . | . . . . . . . . . . . . . . . . . . Parts Recycled . | . . . . . . . . . . . . . . . . . . Recycled Matter . | . . . . . . . . . . . . . . . . . . Retrieved Matter . | . . . . . . . . . . . . . . . . . . Retrieved Components . | . . . . . . . . . . . . . . . . . . Parts Scanalyzed . | . . . . . . . . . . . . . . . . . . Part Schematics Acquired . | . . . . . . . . . . . . . . . . . . Parts Damaged . | . . . . . . . . . . . . . . . . . . Bothacking | -11 -10 -9 -9 -9 -8 -8 -7 -6 -6 -6 -6 -6 -5 -5 -5 -5 -4 ------------ Run | Jun Mat Mat Min Exi Min Mat Fac Fac Ext Cet Arc Hub Fac Upp Upp Zhi Pro Used RIF Installer . | . . . . . . . . . . . . . . . . . . Robots Hacked . | . . . . . . . . . . . . . . . . . . Non-combat . | . . . . . . . . . . . . . . . . . . Combat . | . . . . . . . . . . . . . . . . . . Robot Hacks Applied . | . . . . . . . . . . . . . . . . . . Relay Couplers Released 2 | . . . . . . . . . . . . 2 . . . . . Machine Destruction 2 | . . . . . . . . . . . . 2 . . . . . Fabnet Peak Effective % . | . . . . . . . . . . . . . . . . . . Robots Rewired 18 | . . . . . . . . . 18 . . . . . . . . Allies Hacked . | . . . . . . . . . . . . . . . . . . Hacks Repelled . | . . . . . . . . . . . . . . . . . . Allies | -11 -10 -9 -9 -9 -8 -8 -7 -6 -6 -6 -6 -6 -5 -5 -5 -5 -4 -------- Run | Jun Mat Mat Min Exi Min Mat Fac Fac Ext Cet Arc Hub Fac Upp Upp Zhi Pro Total Allies 31 | . . . . . . . . 1 30 . . . . . . . . Largest Group 14 | . . . . . . . . 1 14 10 1 . . . . . . Highest-Rated Group 552 | . . . . . . . . 26 552 420 152 . . . . . . Highest-Rated Ally 159 | . . . . . . . . 26 159 159 152 . . . . . . Total Orders . | . . . . . . . . . . . . . . . . . . Ally Attacks 205 | . . . . . . . . . 174 31 . . . . . . . Total Damage 4769 | . . . . . . . . . 3463 1306 . . . . . . . Kills 37 | . . . . . . . . . 29 8 . . . . . . . Allies Corrupted . | . . . . . . . . . . . . . . . . . . Allies Melted 1 | . . . . . . . . . 1 . . . . . . . . Intel | -11 -10 -9 -9 -9 -8 -8 -7 -6 -6 -6 -6 -6 -5 -5 -5 -5 -4 ------- Run | Jun Mat Mat Min Exi Min Mat Fac Fac Ext Cet Arc Hub Fac Upp Upp Zhi Pro Robot Analysis Total 9 | . 5 . . . . . . . . . . . . . . 4 . Derelict Logs Recovered 1 | . . . . . . . . . . . . . . . 1 . . Drone Launches . | . . . . . . . . . . . . . . . . . . Drone Recoveries . | . . . . . . . . . . . . . . . . . . Exploration | -11 -10 -9 -9 -9 -8 -8 -7 -6 -6 -6 -6 -6 -5 -5 -5 -5 -4 ------------- Run | Jun Mat Mat Min Exi Min Mat Fac Fac Ext Cet Arc Hub Fac Upp Upp Zhi Pro Turns Passed 4876 | 5 300 46 198 91 69 183 211 122 1053 289 150 266 237 345 863 200 248 Spaces Moved 5007 | 1 340 97 469 266 201 347 551 393 760 182 55 176 151 197 499 154 168 Core . | . . . . . . . . . . . . . . . . . . Treads . | . . . . . . . . . . . . . . . . . . Legs 2029 | . . . . . . . . . 447 182 55 176 151 197 499 154 168 Wheels 69 | 1 68 . . . . . . . . . . . . . . . . Hover 127 | . 127 . . . . . . . . . . . . . . . . Flight 2782 | . 145 97 469 266 201 347 551 393 313 . . . . . . . . Fastest Speed 24 | 100 37 34 34 34 34 28 24 24 24 120 120 120 120 120 120 120 120 Average Speed 68 | 100 56 34 34 34 34 28 27 24 81 120 120 120 120 120 120 120 120 Slowest Speed 122 | 100 116 34 34 34 34 28 28 24 122 120 120 120 120 120 120 120 120 Overloaded Moves . | . . . . . . . . . . . . . . . . . . Propulsion Burnouts . | . . . . . . . . . . . . . . . . . . Robots Hopped 4 | . . . . . . 1 . 1 2 . . . . . . . . Cave-ins Triggered . | . . . . . . . . . . . . . . . . . . Teleports 1 | . . . . . . . . . . . . . . . . . 1 Exploration Rate (%) 44 | 2 64 18 79 76 67 31 14 10 71 65 64 17 5 41 67 63 42 Regions Visited 17 Branch Regions 11 Pre-discovered Areas 5 | . . . 1 1 . . . . . . . . . . . 3 . Known Exits Taken 16 | . 1 1 1 1 1 1 1 1 1 1 1 1 1 1 1 1 . Unknown Exits Taken 1 | 1 . . . . . . . . . . . . . . . . . Scrap Searched 3 | . . . . . . . . . . . . . . 1 2 . . Spaces Dug 6 | . . . . . . 1 1 1 . . . . . 1 . . 2 Terrain Destroyed 264 | . . . 7 . . 1 1 1 37 1 2 176 15 17 3 . 3 Melee 6 | . . . . . . 1 1 1 . . . . . 1 . . 2 Projectile 63 | . . . . . . . . . 17 1 2 8 15 16 3 . 1 AOE 195 | . . . 7 . . . . . 20 . . 168 . . . . . Terrain Rammed . | . . . . . . . . . . . . . . . . . . Walls Destroyed . | . . . . . . . . . . . . . . . . . . Machines Disabled . | . . . . . . . . . . . . . . . . . . Actions | -11 -10 -9 -9 -9 -8 -8 -7 -6 -6 -6 -6 -6 -5 -5 -5 -5 -4 --------- Run | Jun Mat Mat Min Exi Min Mat Fac Fac Ext Cet Arc Hub Fac Upp Upp Zhi Pro Total 6046 | 6 396 102 492 265 200 413 592 419 1081 237 120 203 183 252 727 166 192 Wait 417 | . 2 . 3 . . 36 19 15 32 31 53 6 4 11 199 . 6 Move 4982 | . 339 96 468 265 200 344 550 390 755 181 54 175 150 196 498 153 168 Hop 4 | . . . . . . 1 . 1 2 . . . . . . . . Pick Up 48 | . 10 . 6 . . 4 2 3 8 2 . 1 5 . 5 2 . Fast Attach 27 | . 2 . . . . 3 3 1 10 3 . . 1 . 1 3 . Attach 29 | 2 5 2 . . . 4 1 2 1 . . 2 3 2 2 1 2 Detach 5 | . 1 . . . . 2 . 1 1 . . . . . . . . Swap 71 | . 1 . 4 . . 5 7 1 22 5 3 5 3 8 2 1 4 Drop 70 | 4 8 . 3 . . 5 3 4 24 7 1 1 4 1 1 4 . Fire 194 | . 28 4 8 . . 8 5 . 49 8 9 13 13 30 14 . 5 Melee 33 | . . . . . . 1 2 1 11 . . . . 4 5 2 7 Ram . | . . . . . . . . . . . . . . . . . . Kick . | . . . . . . . . . . . . . . . . . . Crush . | . . . . . . . . . . . . . . . . . . Escape Stasis 19 | . . . . . . . . . 19 . . . . . . . . Rewire 147 | . . . . . . . . . 147 . . . . . . . . Trap . | . . . . . . . . . . . . . . . . . . Miscellaneous . | . . . . . . . . . . . . . . . . . . Route ------- -11/Junkyard -10/Materials (discovered 4 exits: *Mat x3 / Min) -9/Materials -9/Mines -9/Exiles -8/Mines -8/Materials -7/Factory (discovered 6 exits: *Fac x3 / Sto / Low x2) -6/Factory (discovered 4 exits: Low x2 / *Ext x2) -6/Extension (discovered 2 exits: *Fac / *Cet) -6/Cetus (discovered 2 exits: *Fac / *Arc) -6/Archives -6/Hub_04(d) (discovered 2 exits: *Fac x2) -5/Factory -5/Upper Caves -5/Upper Caves -5/Zhirov -4/Proximity Caves History --------- Turn | Location | Event 6 | -11/Junkyard | Discovered new exit (range 0) 6 | -11/Junkyard | Entered Materials 89 | -10/Materials | Identified exit to Mines 107 | -10/Materials | Discovered new exit (range 10) 232 | -10/Materials | Discovered new exit (range 16) 247 | -10/Materials | Identified exit to Materials 277 | -10/Materials | Discovered exit to Materials (range 16) 306 | -10/Materials | Entered another Materials area 306 | -9/Materials | Evolved 2 slots: Propulsion x1, Utility x1 328 | -9/Materials | Build established: Mutant 341 | -9/Materials | Discovered new exit (range 13) 344 | -9/Materials | Identified exit to Mines 352 | -9/Materials | Entered Mines 403 | -9/Mines | Learned location of Storage (-7) 548 | -9/Mines | Deemed a non-threat by the Exiles lab entrance 549 | -9/Mines | Discovered new exit (range 5) 550 | -9/Mines | Identified exit to Exiles 550 | -9/Mines | Entered Exiles 559 | -9/Exiles | Met 8R-AWN 564 | -9/Exiles | Met EX-HEX 578 | -9/Exiles | Met EX-DEC 580 | -9/Exiles | Learned location of Zion (-6) 595 | -9/Exiles | Visited The Gauntlet 637 | -9/Exiles | Discovered new exit (range 14) 640 | -9/Exiles | Identified exit to Mines 641 | -9/Exiles | Entered Mines 705 | -8/Mines | Discovered new exit (range 12) 709 | -8/Mines | Identified exit to Materials 710 | -8/Mines | Entered Materials 710 | -8/Materials | Evolved 2 slots: Propulsion x2 888 | -8/Materials | Discovered new exit (range 16) 893 | -8/Materials | Identified exit to Factory 893 | -8/Materials | Entered Factory 893 | -7/Factory | Evolved 2 slots: Propulsion x1, Utility x1 925 | -7/Factory | Discovered new exit (range 9) 927 | -7/Factory | Identified exit to Factory 1006 | -7/Factory | Discovered exit to Factory (range 3) 1036 | -7/Factory | Discovered exit to Factory (range 15) 1075 | -7/Factory | Identified exit to Storage 1075 | -7/Factory | Identified exit to Lower Caves 1104 | -7/Factory | Entered another Factory area 1104 | -6/Factory | Evolved 2 slots: Power x1, Utility x1 1108 | -6/Factory | Identified exit to Lower Caves 1108 | -6/Factory | Identified exit to Extension 1226 | -6/Factory | Entered Extension 1226 | -6/Extension | Accompanied by 1 ally 1238 | -6/Extension | Disrupted transfer network 1241 | -6/Extension | Rescued a captive Derelict 1243 | -6/Extension | Rescued a captive Derelict 1348 | -6/Extension | Rescued a captive Derelict 1348 | -6/Extension | Rescued a captive Derelict 1380 | -6/Extension | Rescued a captive Derelict 1381 | -6/Extension | Rescued a captive Derelict 1453 | -6/Extension | Spotted B-75 Beast 1463 | -6/Extension | Spotted B-75 Beast 1479 | -6/Extension | Allies destroyed B-75 Beast 1505 | -6/Extension | Lost 3 parts (3n) 1529 | -6/Extension | Destroyed B-75 Beast 1742 | -6/Extension | Build established: Scavenger-Mutant 1945 | -6/Extension | Rescued a captive Derelict 1947 | -6/Extension | Rescued a captive Derelict 1971 | -6/Extension | Rescued a captive Derelict 1972 | -6/Extension | Rescued a captive Derelict 2070 | -6/Extension | Rescued a captive Derelict 2075 | -6/Extension | Rescued a captive Derelict 2139 | -6/Extension | Rescued A7 2234 | -6/Extension | Discovered new exit (range 10) 2235 | -6/Extension | Discovered new exit (range 6) 2251 | -6/Extension | Identified exit to Factory 2267 | -6/Extension | Identified exit to Cetus 2276 | -6/Extension | First assault squad dispatched 2279 | -6/Extension | Entered Cetus 2279 | -6/Cetus | Accompanied by 10 allies (A7) 2284 | -6/Cetus | Acquired a Cetus Manufacturing Module code from A7 2296 | -6/Cetus | Spotted Cetus Guard 2296 | -6/Cetus | Spotted Cetus Guard 2298 | -6/Cetus | Spotted Cetus Guard 2301 | -6/Cetus | Spotted Cetus Guard 2305 | -6/Cetus | Allies destroyed Cetus Guard 2312 | -6/Cetus | Allies destroyed Cetus Guard 2312 | -6/Cetus | Cetus Manufacturing Module disabled 2316 | -6/Cetus | Allies destroyed Cetus Guard 2316 | -6/Cetus | Allies destroyed Cetus Guard 2359 | -6/Cetus | Failed to start Cetus Manufacturing Module 2437 | -6/Cetus | Discovered new exit (range 15) 2474 | -6/Cetus | Spotted Cetus Guard 2474 | -6/Cetus | Spotted Cetus Guard 2477 | -6/Cetus | Destroyed Cetus Guard 2478 | -6/Cetus | Spotted Cetus Guard 2482 | -6/Cetus | Spotted Cetus Guard 2483 | -6/Cetus | Destroyed Cetus Guard 2483 | -6/Cetus | Destroyed Cetus Guard 2495 | -6/Cetus | Allies destroyed Cetus Guard 2496 | -6/Cetus | Discovered exit to Factory (range 16) 2502 | -6/Cetus | Met Revision 17 2564 | -6/Cetus | Identified exit to Archives 2568 | -6/Cetus | Entered Archives 2568 | -6/Archives | Accompanied by 1 ally (A7) 2640 | -6/Archives | Discovered new exit (range 15) 2646 | -6/Archives | Unable to access archive contents 2664 | -6/Archives | Identified exit to Hub_04(d) 2718 | -6/Archives | Entered Hub_04(d) 2784 | -6/Hub_04(d) | Discovered exit to Factory (range 7) 2816 | -6/Hub_04(d) | Discovered exit to Factory (range 7) 2860 | -6/Hub_04(d) | Spotted B-75 Beast 2963 | -6/Hub_04(d) | Network Hub disabled 2971 | -6/Hub_04(d) | Spotted Lightning 2973 | -6/Hub_04(d) | Spotted Lightning 2974 | -6/Hub_04(d) | Spotted Lightning 2984 | -6/Hub_04(d) | Entered Factory 2984 | -5/Factory | Evolved 2 slots: Utility x2 3206 | -5/Factory | Discovered new exit (range 13) 3220 | -5/Factory | Identified exit to Upper Caves 3221 | -5/Factory | Entered Upper Caves 3299 | -5/Upper Caves | Build established: Scavenger-Skirmisher 3555 | -5/Upper Caves | Discovered new exit (range 8) 3565 | -5/Upper Caves | Identified exit to Upper Caves 3566 | -5/Upper Caves | Entered another Upper Caves area 3603 | -5/Upper Caves | Found Alien Artifact 3626 | -5/Upper Caves | Identified Dimensional Node Initializer 3626 | -5/Upper Caves | Initialized slip node 3780 | -5/Upper Caves | Build established: Scavenger-Assassin 4325 | -5/Upper Caves | Attracted the attention of an 0b10 checkpoint 4361 | -5/Upper Caves | Discovered new exit (range 14) 4375 | -5/Upper Caves | Identified exit to Zhirov 4429 | -5/Upper Caves | Entered Zhirov 4429 | -5/Zhirov | Discovered new exit (range 3) 4452 | -5/Zhirov | Met Zhirov 4475 | -5/Zhirov | Learned location of Quarantine (-2) 4475 | -5/Zhirov | Learned location of Testing (-3) 4475 | -5/Zhirov | Learned location of Command (-1) 4499 | -5/Zhirov | Zhirov requested help retrieving the SGEMP Prototype 4526 | -5/Zhirov | Found Alien Artifact 4526 | -5/Zhirov | Identified Integrated Reactor 4526 | -5/Zhirov | Installed Integrated Reactor, increased core energy generation (+10) 4550 | -5/Zhirov | Found Alien Artifact 4628 | -5/Zhirov | Identified exit to Proximity Caves 4629 | -5/Zhirov | Entered Proximity Caves 4703 | -4/Proximity Caves | Identified Transdimensional Reconstructor 4703 | -4/Proximity Caves | Warped through subspace 4747 | -4/Proximity Caves | Spotter reported a threat 4877 | -4/Proximity Caves | Self-destructed Last Messages --------------- 04859_ Imp. Targeting Computer fried. 04861_ G-73 Enforcer knocked back. 04862_ Flexi-carbon Leg destroyed. 04865_ Penetrated by Slug. 04865_ G-67 Veteran suffers critical hit (Smash). 04865_ Destroyed Flexi-carbon Leg. 04865_ G-67 Veteran system corrupted by crushing effect. 04867_ Corrupted Myomer Leg self-destruct mechanism malfunctions. 04868_ Penetrated by Slug. 04868_ Slug penetrates Wall. 04868_ Carbon-fiber Leg destroyed. 04868_ Centrium Medium Armor Plating destroyed. 04868_ Magnetic Acceleration Cannon destroyed. 04871_ Carbon-fiber Leg destroyed. 04872_ Penetrated by Slug. 04872_ Slug penetrates Wall. 04872_ Penetrated by Slug. 04874_ Carbon-fiber Leg destroyed. 04875_ Structural Scanner destroyed. 04876_ Arm. Leg destroyed. Map ----- +----------------------------------------------------+ | ?????????????????????????????????????????????????? | | ?????????????????????????????????????????????????? | | ?????????????????????????????????????????????????? | | ?????????????????????????????????????????????????? | | ?????????????????????????????????????????????????? | | ?????????????????????????????????????????????????? | | ?????????????????????????????????????????????????? | | ?????????????????????????????????????????????????? | | ?????????????????????????????????????????????????? | | ?????????????????????????????????????????????????? | | ?????????????????????????????????????????????????? | | ?????????????????????????????????????????????????? | | ?????????????????????????????????????????????????? | | ?????????????????????????######??????????????????? | | ????????????????????????########?????????????????? | | ??????????????????????##### ###?????????????????? | | ????????????????????###### ###????????????????? | | ????????????????????#### ####???????????????? | | ????????????????????## ####??????????????? | | ????????????????????### ###??????????????? | | ####?????????????????## ##??????????????? | | ####????????????## ??### ##??????????????? | | ????????????## #####gg= ##??????????????? | | ????????????## ##### g ##??????????????? | | ##????????????## #### h### ###??????????????? | | ##????????????### ### @g########??????????????? | | ##???????????#### ## #######???????????????? | | ###?????????#### ######????????????????? | | ########??##### ## ##????????????????? | | ############# ##????????????????? | | # ##### ### ###????????????????? | | # ### ##### ###????????????????? | | ### ##### ###???????????????? | | ##### ###?## ## ###???????????????? | | # ##### ###??###### ##???????????????? | | ## ##### ####??##### ##???????????????? | | ###### ######??????## ##???????????????? | | ##### ######?????#### ###???????????????? | | ###### ####???????##### ###???????????????? | | ###### ###?????###### ###???????????????? | | ##### ############ ##???????????????? | | #### ######### ##???????????????? | | ## ## ###???????????????? | | ## ###???????????????? | | # ### ######### ###????????????????? | | # ### ######### ####????????????????? | | ?## ##?????### ####?????????????????? | | ?## ##????########??????????????????? | | ## ? ##????? ???????????????????? | | ## ??????????????????????????????? | +----------------------------------------------------+ Best States ------------- Heat Dissipation 59 Energy Generation 39 Energy Capacity 565 Matter Stores 300 Matter Capacity 300 Sight Range 22 Robot Scan Range 16 Terrain Scan Density 10 Additional Mass Support 6 Armor Coverage 450 Resistance: KI 40 Resistance: TH 20 Resistance: EX 20 Resistance: EM 20 Resistance: I 20 Resistance: S 20 Resistance: P 20 Phase Shifting 5 Evasion (%) 65 Targeting Accuracy 6 Offensive Hacking 21 Item Schematics ----------------- Imp. Flight Unit | -8/Materials | Hacked Ion Engine | -8/Materials | Hacked Assault Drone Bay | -5/Zhirov | Free Exp. Heat Sink | -5/Zhirov | Free Exp. Optical Array | -5/Zhirov | Free Imp. Arc Thrower | -5/Zhirov | Free Robot Schematics ------------------ None Fabricated ------------ Nothing Alien Tech Used ----------------- Dimensional Node Initializer Integrated Reactor Transdimensional Reconstructor Achievements -------------- None Challenges ------------ None Game ------ Seed PhysicsNodeRouter Manual? 0 Play Time 01:23:33 Cumulative 232.6 hours Start 2023.06.06 @ 10:00:39 End 2023.06.06 @ 11:29:12 Sessions 1 Manual Loads 0 Difficulty Adventurer Special Mode None Game No. 94 Rogue 63 Adventurer 28 Explorer 3 Win Type - Total 11 Types 6/0/1/2/0/0/1/0/1 Lore% 60 Gallery% 78 Achievement% 75 Wizard Run 0 Options --------- ASCII 0 Keyboard 0 Movement Numpad Keybinds 0 Fullscreen 1 Font 24/Proggy Map View 76x50 Tactical HUD 1 Map Filters NONE Filters LOW_CONTRAST(13,24,33) Steam 1 RUN: 6f59eacc-3af4-420c-a501-3e3aece9b49a